Cogmind - Beta 15 @@@ ROGUE MODE // 2025.08.06 @ 22:16:16 Player: C0-2MO Result: Destroyed by C-35 Carver with Carbide Saw Performance ------------- Evolutions (6) 3000 Regions Visited (19) 3800 Robots Destroyed (131) 655 Value Destroyed (5058) 5058 Prototype IDs (33) 660 Alien Tech Used (0) 0 Bonus (4325) 4325 TOTAL SCORE: 17498 Bonus ------- High Alert Combat Kills 122 Follower Combat Kills 803 Forged Quantum Companion 1000 Entered Garrisons 400 Used RIF Installer 1000 Network Hubs Disabled 200 Registered with UFD 300 Met Optimus in HQ 500 Cogmind --------- Core Integrity 0/1150 Matter 295/300 Energy 8/100 System Corruption 6% Temperature Cool (0) Movement Core (100) Ox1 Location -4/Garrison Parts ------- > --- POWER (1) -------- (None) > --- PROPULSION (8) --- Combat Gravmag System Combat Gravmag System Combat Gravmag System Combat Gravmag System > --- UTILITY (8) ------ Advanced Heat Sink Advanced Signal Interpreter Nanoactuators Graphene Brace Advanced Hacking Suite > --- WEAPON (2) ------- Quantum Companion > --- INVENTORY (5) ---- Stasis Canceller Advanced Transmission Jammer Peak State ------------ > --- POWER ------------ Micro Fission Core > --- PROPULSION ------- Field Propulsion Drive Field Propulsion Drive Cooled Nuclear Pulse Thruster Nuclear Pulse Array Impulse Thruster Impulse Thruster Impulse Thruster > --- UTILITY ---------- Small Storage Unit Advanced Sensor Array Advanced Signal Interpreter Advanced Melee Analysis Suite Improved Core Shielding Graphene Brace Advanced Hacking Suite Advanced Hacking Suite > --- WEAPON ----------- Companion Sword > --- INVENTORY -------- Microactuators Stasis Canceller Improved Transmission Jammer Advanced ECM Suite Advanced System Restoration Module Improved Plasma Cutter [Rating: 107] Favorites ----------- Power Micro Fission Core Engine Cooled Deuterium Engine Power Core Micro Fission Core Reactor Mini Fusion Reactor Propulsion Field Propulsion Drive Treads Light Treads Wheel Compact Wheel Hover Unit Combat Gravmag System Flight Unit Field Propulsion Drive Utility Hacking Suite Device Structural Scanner Storage Small Storage Unit Processor Advanced Signal Interpreter Hackware Hacking Suite Protection Improved Propulsion Shielding Weapon Companion Sword Energy Gun Wave Gun Ballistic Gun Light Assault Rifle Impact Weapon Heavy Flail Slashing Weapon Companion Sword Piercing Weapon Heavy Pick Build | -11 -10 -10 -10 -8 -6 -6 -6 -6 -5 -5 -5 -4 -4 -4 -4 -4 -4 -4 -4 ------- Run | Yrd Mat Min Sub Scr Fac Was Fac Gar Fac Was Fac Fac Was Fac Ext Cet Arc Hub Gar Slots Evolved 12 | . . . . . 8 . . . 2 . . 2 . . . . . . . Power . | . . . . . . . . . . . . . . . . . . . . Propulsion 6 | . . . . . 4 . . . . . . 2 . . . . . . . Utility 6 | . . . . . 4 . . . 2 . . . . . . . . . . Weapon . | . . . . . . . . . . . . . . . . . . . . Parts Attached 175 | 4 5 . 1 6 36 . 17 1 39 1 10 25 . 7 11 . . 9 3 Power 17 | . . . . 1 6 . 2 . 3 . 1 2 . . 1 . . . 1 Engine 4 | . . . . 1 2 . 1 . . . . . . . . . . . . Core 8 | . . . . . 4 . 1 . 1 . 1 1 . . . . . . . Reactor 5 | . . . . . . . . . 2 . . 1 . . 1 . . . 1 Propulsion 74 | 2 3 . . 1 19 . 7 . 17 1 2 13 . 1 2 . . 6 . Treads 2 | 2 . . . . . . . . . . . . . . . . . . . Leg . | . . . . . . . . . . . . . . . . . . . . Wheel 2 | . . . . . . . . . 2 . . . . . . . . . . Hover 13 | . . . . . 2 . . . 6 . . . . . . . . 5 . Flight 57 | . 3 . . 1 17 . 7 . 9 1 2 13 . 1 2 . . 1 . Utility 76 | 1 1 . . . 11 . 8 1 19 . 7 10 . 6 8 . . 2 2 Device 39 | 1 . . . . 5 . 4 1 10 . 3 7 . 3 2 . . 1 2 Storage 2 | . . . . . . . . . . . 1 . . 1 . . . . . Processor 3 | . . . . . 1 . 1 . . . . . . . 1 . . . . Hackware 15 | . 1 . . . 3 . 2 . 5 . 2 1 . . 1 . . . . Protection 17 | . . . . . 2 . 1 . 4 . 1 2 . 2 4 . . 1 . Artifact . | . . . . . . . . . . . . . . . . . . . . Weapon 8 | 1 1 . 1 4 . . . . . . . . . . . . . 1 . Energy Gun 1 | . . . . . . . . . . . . . . . . . . 1 . Energy Cannon . | . . . . . . . . . . . . . . . . . . . . Ballistic Gun 4 | 1 1 . 1 1 . . . . . . . . . . . . . . . Ballistic Cannon . | . . . . . . . . . . . . . . . . . . . . Launcher . | . . . . . . . . . . . . . . . . . . . . Special Weapon . | . . . . . . . . . . . . . . . . . . . . Impact Weapon 1 | . . . . 1 . . . . . . . . . . . . . . . Slashing Weapon 1 | . . . . 1 . . . . . . . . . . . . . . . Piercing Weapon 1 | . . . . 1 . . . . . . . . . . . . . . . Special Melee Weapon . | . . . . . . . . . . . . . . . . . . . . Unidentified Prototypes 13 | . . . . 1 2 . 2 . 4 . 1 2 . 1 . . . . . Parts Lost 76 | . 1 . . . 11 . 3 . 21 . 9 7 . . 10 . 1 8 5 Power 6 | . . . . . . . 1 . 2 . 1 . . . . . . 1 1 Propulsion 42 | . 1 . . . 10 . . . 11 . 4 5 . . 7 . . 4 . Utility 27 | . . . . . 1 . 2 . 8 . 4 2 . . 3 . 1 3 3 Weapon 1 | . . . . . . . . . . . . . . . . . . . 1 Highest Loss Streak 8 | . 1 . . . 4 . 2 . 8 . 4 5 . . 7 . 1 6 3 To Critical Strikes . | . . . . . . . . . . . . . . . . . . . . Average Backups 5 | . 3 4 4 4 4 5 4 4 4 5 6 7 8 8 6 5 5 2 2 Power . | . 1 1 1 1 . 1 . . . 1 . . 1 1 2 2 2 . . Propulsion . | . . . . . . 1 . . . . . . . . . . . . . Utility 3 | . . 1 1 1 2 3 3 4 3 3 3 5 6 5 4 3 3 2 2 Weapon . | . 1 2 2 2 . . . . . . . . . . . . . . . Tool/Special . | . . . . . . . . . . . . . . . . . . . . Unused Backups 13 | . . . . 2 5 1 2 . . . . 1 . . 1 . . . 1 Power 2 | . . . . . . 1 1 . . . . . . . . . . . . Propulsion . | . . . . . . . . . . . . . . . . . . . . Utility 6 | . . . . . 3 . 1 . . . . 1 . . . . . . 1 Weapon 4 | . . . . 2 2 . . . . . . . . . . . . . . Tool/Special 1 | . . . . . . . . . . . . . . . 1 . . . . Average Slot Usage (%) 83 | . 74 85 85 85 87 93 90 93 83 88 81 82 89 88 67 52 52 68 62 Core 2 | . . . . . 5 6 2 . 3 . 2 3 . . . . . 1 . Reactor 1 | . . . . . . . . . . 5 2 1 5 5 2 . . 2 4 Hover 2 | . . . . . 3 . . . 5 . . . . . . . . 16 21 Flight 27 | . 23 28 28 28 31 40 38 40 19 29 25 31 36 36 20 10 10 4 . Device 13 | . 14 14 14 14 12 6 13 13 16 17 8 13 15 10 8 10 10 16 16 Storage 1 | . . . . . . . . . . . 3 5 5 5 2 . . . . Processor 7 | . . . . . 3 6 11 13 11 11 11 7 5 5 8 10 10 7 5 Hackware 12 | . 6 14 14 14 19 20 10 13 13 11 15 9 10 10 11 10 10 10 6 Protection 2 | . . . . . 2 6 2 . 1 5 2 2 5 9 5 5 5 3 . Ballistic Gun 2 | . 26 28 28 14 . . . . . . . . . . . . . . . Slashing Weapon 4 | . . . . 4 6 6 6 6 5 5 5 5 5 5 5 5 5 5 5 Peak Build Rating 107 | 4 8 8 10 18 56 57 67 66 78 82 87 107 102 103 107 59 66 99 88 Average Rating 63 | 2 6 8 9 13 45 54 60 64 64 78 78 92 102 98 79 59 65 86 81 On Entrance 53 | . 4 8 8 10 17 54 57 64 66 78 78 46 102 102 99 59 59 62 88 Naked Turns . | . . . . . . . . . . . . . . . . . . . . Heaviest Build 48 | 3 4 4 5 10 20 15 19 21 24 22 24 22 22 44 48 13 13 28 22 Greatest Support 70 | 3 8 8 8 10 24 24 30 26 35 35 33 52 53 53 53 13 13 70 56 Greatest Overweight (x) 3 | . . . . . 3 . 1 . 3 1 . . . . 2 . . 1 . Average Overweight (x) . | . . . . . . . . . . . . . . . . . . . . Largest Inventory Capacity 15 | 5 5 5 5 5 5 5 5 5 5 5 8 8 8 15 15 5 5 5 5 Average Capacity 6 | 5 5 5 5 5 5 5 5 5 5 5 6 8 8 10 10 5 5 5 5 Most Carried 9 | 2 4 4 5 5 5 5 5 4 5 5 8 8 8 9 9 5 5 5 2 Average Carried 5 | . 3 4 4 4 4 4 4 4 4 5 6 7 8 8 6 5 5 2 2 Final Capacity 15 | 5 5 5 5 5 5 5 5 5 5 5 8 8 8 15 5 5 5 5 5 Final Carried 9 | 2 4 4 5 5 5 5 4 4 5 5 8 8 8 9 5 5 5 2 2 Class Distribution -------------------- 40% | Hacker-Scout 17% | Hacker-Sprinter 8% | Scavenger-Mutant 8% | Mutant 7% | Hacker-Mutant 4% | Scavenger-Sprinter 3% | Sprinter Dominant Class ---------------- Scavenger-Mutant | -10/Materials Scavenger-Mutant | -10/Mines Scavenger-Mutant | -10/Subcaves Scavenger-Mutant | -8/Scraptown Hacker-Scout | -6/Factory Hacker-Scout | -6/Waste Hacker-Scout | -6/Factory Hacker-Sprinter | -6/Garrison Hacker-Scout | -5/Factory Hacker-Scout | -5/Waste Hacker-Sprinter | -5/Factory Hacker-Scout | -4/Factory Hacker-Scout | -4/Waste Hacker-Scout | -4/Factory Hacker-Sprinter | -4/Extension Mutant | -4/Cetus Mutant | -4/Archives Mutant | -4/Hub_04(d) Mutant | -4/Garrison Resources | -11 -10 -10 -10 -8 -6 -6 -6 -6 -5 -5 -5 -4 -4 -4 -4 -4 -4 -4 -4 ----------- Run | Yrd Mat Min Sub Scr Fac Was Fac Gar Fac Was Fac Fac Was Fac Ext Cet Arc Hub Gar Matter Collected 2807 | 300 262 . . 60 530 . 329 . 547 34 103 275 . 67 175 . 20 95 10 Remotely . | . . . . . . . . . . . . . . . . . . . . Salvage Created 6624 | 150 358 . . . 1645 . 596 . 1513 . 151 265 . 145 948 . 135 478 240 Parts 333 | 10 21 . . . 94 . 45 . 65 . 11 13 . 9 39 . 4 11 11 Haulers Intercepted 9 | . 2 . . . 2 . . . 2 . . 1 . . 1 . . 1 . Recyclers Shooed 3 | 1 . . . . 2 . . . . . . . . . . . . . . Parts Field Recycled . | . . . . . . . . . . . . . . . . . . . . Retrieved Matter . | . . . . . . . . . . . . . . . . . . . . Parts Self-Destructed 3 | . . . 3 . . . . . . . . . . . . . . . . Prevented . | . . . . . . . . . . . . . . . . . . . . Kills | -11 -10 -10 -10 -8 -6 -6 -6 -6 -5 -5 -5 -4 -4 -4 -4 -4 -4 -4 -4 ------- Run | Yrd Mat Min Sub Scr Fac Was Fac Gar Fac Was Fac Fac Was Fac Ext Cet Arc Hub Gar Combat Hostiles Destroyed 68 | . 7 . . . 15 . 9 . 10 . 3 3 . . 11 . 1 5 4 Melee 57 | . . . . . 15 . 9 . 10 . 3 3 . . 11 . 1 1 4 Guns 7 | . 7 . . . . . . . . . . . . . . . . . . AOE 3 | . . . . . . . . . . . . . . . . . . 3 . Classes Destroyed 16 | 2 5 . . . 4 . 1 . 2 . . . . . 1 . . . 1 Worker 1 | . . . . . . . . . 1 . . . . . . . . . . Builder 12 | . . . . . 4 . 3 . 2 . . 2 . . . . . 1 . Tunneler 4 | 3 . . . . . . . . . . . 1 . . . . . . . Hauler 9 | . 2 . . . 2 . . . 2 . . 1 . . 1 . . 1 . Recycler 7 | 1 . . . . 3 . . . 3 . . . . . . . . . . Mechanic 1 | . . . . . . . . . 1 . . . . . . . . . . Operator 7 | . 1 . . . 3 . . . . . 1 . . 1 . . 1 . . Drone 2 | . . . . . . . 1 . . . . 1 . . . . . . . Watcher 24 | . 1 . . . 6 . 5 . 7 . . 1 . 3 1 . . . . Swarmer 18 | . 3 . . . 6 . 2 . 1 . 2 2 . . 2 . . . . Cutter 1 | . . . . . . . . . . . . . . . . . . . 1 Grunt 13 | . 4 . . . . . . . . . . . . . 2 . . 4 3 Sentry 19 | . . . . . 6 . 4 . 3 . 1 . . . 3 . 1 1 . Hunter 5 | . . . . . 1 . 1 . . . . . . . 3 . . . . Programmer 9 | . . . . . 2 . 1 . 6 . . . . . . . . . . Behemoth 1 | . . . . . . . . . . . . . . . 1 . . . . Best Kill Streak 7 | 3 3 . . . 7 . 4 . 6 . 1 2 . 1 3 . 2 6 2 Combat Bots Only 4 | . 3 . . . 4 . 3 . 2 . 1 1 . . 3 . 1 4 2 Max Kills in Single Turn 4 | 1 1 . . . 1 . 1 . 1 . 1 1 . 1 1 . 1 4 1 Gunslinging . | . . . . . . . . . . . . . . . . . . . . Exploded 3 | . . . . . . . . . . . . . . . . . . 3 . Melee 1 | . . . . . 1 . 1 . 1 . 1 1 . . 1 . 1 1 1 Uniques/NPCs Destroyed . | . . . . . . . . . . . . . . . . . . . . Combat | -11 -10 -10 -10 -8 -6 -6 -6 -6 -5 -5 -5 -4 -4 -4 -4 -4 -4 -4 -4 -------- Run | Yrd Mat Min Sub Scr Fac Was Fac Gar Fac Was Fac Fac Was Fac Ext Cet Arc Hub Gar Hostile Shots Fired 1073 | . 30 . . . 229 . 127 24 136 . 132 110 . 51 99 10 8 78 39 Missed 504 | . 5 . . . 121 . 61 17 43 . 70 64 . 29 44 7 5 26 12 Deflected 4 | . . . . . . . . . . . . . . . . . . 2 2 Hits 569 | . 25 . . . 108 . 66 7 93 . 62 46 . 22 55 3 3 52 27 Melee 3 | . . . . . . . . . . . . 1 . . . . . . 2 Projectile 566 | . 25 . . . 108 . 66 7 93 . 62 45 . 22 55 3 3 52 25 AOE 4 | . . . . . . . 2 . . . 2 . . . . . . . . Critical Strikes 26 | . 2 . . . . . 2 . 5 . 1 2 . . 4 . . 7 3 Actively Blocked 14 | . . . . . . . 1 . 1 . . 2 . . . . . 7 3 Part Disruptions 2 | . . . . . . . . . 1 . 1 . . . . . . . . Damage Taken 10120 | . 260 . . . 1205 . 676 102 2088 . 1326 921 . 392 1037 119 88 1393 513 Core 2588 | . 65 . . . 270 . 180 26 473 . 400 277 . 25 184 63 9 475 141 Absorbed by Shields 149 | . . . . . . . . . . . . . . . 149 . . . . Redirected to Shielding 708 | . . . . . 25 . 136 . 24 . 152 88 . 73 210 . . . . Regen/Repaired (Parts) 693 | . 13 . . . 230 . 44 . 151 . . 144 . 26 85 . . . . Core Remaining (%) 57 | 100 . . . 74 . . . 44 . . 12 . . . . . . . . Volleys Fired 79 | 20 52 . . . . . . . . . . . . . . . . 2 5 Largest 2 | 1 2 . . . . . . . . . . . . . . . . 1 1 Hottest 81 | 20 40 . . . . . . . . . . . . . . . . 81 81 Shots Fired 120 | 20 93 . . . . . . . . . . . . . . . . 2 5 Gun 120 | 20 93 . . . . . . . . . . . . . . . . 2 5 Cannon . | . . . . . . . . . . . . . . . . . . . . Launcher . | . . . . . . . . . . . . . . . . . . . . Special . | . . . . . . . . . . . . . . . . . . . . Kinetic 113 | 20 93 . . . . . . . . . . . . . . . . . . Thermal 7 | . . . . . . . . . . . . . . . . . . 2 5 Explosive . | . . . . . . . . . . . . . . . . . . . . Electromagnetic . | . . . . . . . . . . . . . . . . . . . . Robot Hit Streak 8 | 3 8 . . . . . . . . . . . . . . . . . . Robot Miss Streak 7 | 2 7 . . . . . . . . . . . . . . . . . . Penetration Max . | . . . . . . . . . . . . . . . . . . . . Secondary Targets 1 | . 1 . . . . . . . . . . . . . . . . . . Max Gunslinging Chain 1 | . 1 . . . . . . . . . . . . . . . . . . Autonomous 3 | . . . . . . . . . . . . . . . . . . 3 . Shots Hit Robots 364 | 14 52 . . . 74 . 34 1 76 . 14 16 . 8 55 . 5 2 13 Core Hits 150 | 5 21 . . . 28 . 15 . 29 . 4 5 . 4 21 . 3 9 6 Critical Kills . | . . . . . . . . . . . . . . . . . . . . Critical Parts Destroyed 1 | . 1 . . . . . . . . . . . . . . . . . . Critical Strikes 19 | . 1 . . . 2 . . . 4 . . . . . 12 . . . . Destroy 1 | . 1 . . . . . . . . . . . . . . . . . . Melee Attacks 565 | . . . . . 138 . 64 1 125 . 35 62 . 31 68 . 9 8 24 Impact . | . . . . . . . . . . . . . . . . . . . . Slashing 565 | . . . . . 138 . 64 1 125 . 35 62 . 31 68 . 9 8 24 Piercing . | . . . . . . . . . . . . . . . . . . . . Sneak Attacks 39 | . . . . . 11 . 7 1 12 . . 5 . 1 1 . 1 . . Combat Hostiles 9 | . . . . . 1 . 4 1 2 . . 1 . . . . . . . Follow-up Attacks . | . . . . . . . . . . . . . . . . . . . . Damage Inflicted 17386 | 176 548 . . . 4036 . 1937 87 3840 . 695 933 . 525 2408 . 383 1141 677 Guns 724 | 176 548 . . . . . . . . . . . . . . . . . . Cannons 263 | . . . . . . . . . . . . . . . . . . 263 . Explosions 757 | . . . . . . . . . . . . . . . . . . 757 . Melee 15596 | . . . . . 3990 . 1937 87 3840 . 695 933 . 525 2408 . 383 121 677 Ramming 46 | . . . . . 46 . . . . . . . . . . . . . . Kinetic 724 | 176 548 . . . . . . . . . . . . . . . . . . Thermal . | . . . . . . . . . . . . . . . . . . . . Explosive . | . . . . . . . . . . . . . . . . . . . . Electromagnetic 757 | . . . . . . . . . . . . . . . . . . 757 . Impact . | . . . . . . . . . . . . . . . . . . . . Slashing 15596 | . . . . . 3990 . 1937 87 3840 . 695 933 . 525 2408 . 383 121 677 Piercing . | . . . . . . . . . . . . . . . . . . . . Phasic 263 | . . . . . . . . . . . . . . . . . . 263 . Highest Corruption 9 | . . . . . 1 9 9 . 9 1 4 1 7 7 . . . 6 6 Average Corruption 3 | . . . . . 1 4 4 . 5 1 1 1 7 3 . . . 2 6 Corruption Purged 29 | . . . . . . . 10 . 11 . . 1 . 7 . . . . . Corruption Blocked . | . . . . . . . . . . . . . . . . . . . . Effects 57 | . . . . . 3 . 10 . 30 . 6 3 . 2 . . . . 3 Message Errors 14 | . . . . . 1 . 1 . 9 . . 1 . 1 . . . . 1 Matter Fused 13 | . . . . . 2 . 2 . 7 . 1 . . 1 . . . . . Heat Flow Errors 8 | . . . . . . . 2 . 4 . 1 1 . . . . . . . Energy Discharges 6 | . . . . . . . 1 . 3 . 2 . . . . . . . . Parts Fused 2 | . . . . . . . 1 . 1 . . . . . . . . . . Data Loss (minor) 10 | . . . . . . . 2 . 4 . 2 1 . . . . . . 1 Data Loss (major) 1 | . . . . . . . . . 1 . . . . . . . . . . Alerts 3 | . . . . . . . 1 . 1 . . . . . . . . . 1 Overload Shots . | . . . . . . . . . . . . . . . . . . . . Overflow Damage 1613 | . . . . . 617 . 94 . 305 . 68 244 . 39 68 . 114 43 21 Projectiles 40 | . . . . . . . . . . . . . . . . . . 40 . Explosions 3 | . . . . . . . . . . . . . . . . . . 3 . Melee 1570 | . . . . . 617 . 94 . 305 . 68 244 . 39 68 . 114 . 21 Knockbacks 1 | . . . . . 1 . . . . . . . . . . . . . . Impact 1 | . . . . . 1 . . . . . . . . . . . . . . Kinetic . | . . . . . . . . . . . . . . . . . . . . Secondary . | . . . . . . . . . . . . . . . . . . . . Self-Inflicted Damage 121 | . . . . . 23 . . . . . . . . . . . . 98 . Shots 1 | . . . . . . . . . . . . . . . . . . 1 . Rammed 1 | . . . . . 1 . . . . . . . . . . . . . . Targets Rammed 1 | . . . . . 1 . . . . . . . . . . . . . . Kicked . | . . . . . . . . . . . . . . . . . . . . Crushed . | . . . . . . . . . . . . . . . . . . . . Highest Temperature 281 | . 27 . . . 3 96 262 77 260 100 274 197 206 281 80 . . 118 229 Average Temperature 49 | . 8 . . . 1 48 60 35 84 40 116 46 107 33 25 . . 51 115 Received Heat Transfer 1287 | . 114 . . . 153 . 186 27 153 . 102 123 . 33 93 9 9 225 60 Effects 5 | . . . . . . . . . . . 2 . . 3 . . . . . Energy Bleed 1 | . . . . . . . . . . . . . . 1 . . . . . Interference 4 | . . . . . . . . . . . 2 . . 2 . . . . . Siege Activations . | . . . . . . . . . . . . . . . . . . . . Martial Activations . | . . . . . . . . . . . . . . . . . . . . Shielding Activations . | . . . . . . . . . . . . . . . . . . . . Robots Disrupted . | . . . . . . . . . . . . . . . . . . . . Combat Hostiles . | . . . . . . . . . . . . . . . . . . . . Robots Corrupted 3 | . . . . . 1 . . . . . . . . . . . . 2 . Combat Hostiles 1 | . . . . . . . . . . . . . . . . . . 1 . Parts Fried 9 | . . . . . 2 . . . . . . . . . . . . 7 . Impact Corruptions 2 | . . . . . 2 . . . . . . . . . . . . . . Robots Melted . | . . . . . . . . . . . . . . . . . . . . Combat Hostiles . | . . . . . . . . . . . . . . . . . . . . Parts Melted 3 | . . . . . . . . . 2 . . . . . 1 . . . . Heat Transferred . | . . . . . . . . . . . . . . . . . . . . Parts Sabotaged . | . . . . . . . . . . . . . . . . . . . . Parts Stolen . | . . . . . . . . . . . . . . . . . . . . Parts Stripped . | . . . . . . . . . . . . . . . . . . . . Power Chain Reactions 2 | . . . . . . . . . . . 2 . . . . . . . . Alert | -11 -10 -10 -10 -8 -6 -6 -6 -6 -5 -5 -5 -4 -4 -4 -4 -4 -4 -4 -4 ------- Run | Yrd Mat Min Sub Scr Fac Was Fac Gar Fac Was Fac Fac Was Fac Ext Cet Arc Hub Gar Maximum Alert Level 3 | . . . . . 1 . 2 1 2 . 3 3 . . 1 . . 1 2 Low Security (%) 63 | 100 100 100 . . 98 100 40 . 55 100 38 . 100 100 71 100 100 76 . Level 1 18 | . . . . . 1 . 58 100 17 . 16 23 . . 28 . . 23 18 Level 2 11 | . . . . . . . . . 27 . 35 21 . . . . . . 81 Level 3 7 | . . . . . . . . . . . 9 54 . . . . . . . Level 4 . | . . . . . . . . . . . . . . . . . . . . Level 5 . | . . . . . . . . . . . . . . . . . . . . High Security . | . . . . . . . . . . . . . . . . . . . . Max Security . | . . . . . . . . . . . . . . . . . . . . Peak Influence 998 | 10 95 33 . . 218 75 403 262 499 152 771 998 177 198 319 167 72 378 475 Initial 354 | . 3 27 . . . 75 45 207 113 116 8 354 177 123 63 167 42 21 239 Average 225 | 2 65 14 . . 92 72 245 228 231 79 339 661 177 99 115 141 52 94 431 Influence Increases 8834 | 20 319 6 . . 1021 . 1115 70 1352 86 1173 1452 . 558 902 . 40 434 286 Destroy 0b10 Robot/C 1600 | . 140 . . . 300 . 160 20 200 . 60 40 . . 480 . 20 100 80 Destroy 0b10 Robot/NC 350 | 20 20 . . . 95 . 45 . 80 . 5 30 . 20 20 . 5 10 . Destroy Leader 422 | . 36 . . . 126 . 70 . 78 . 20 4 . 6 62 . . 20 . Allied During Kill 201 | . . . . . 1 . . 5 5 . . . . . 190 . . . . Successful Hack 570 | . 33 6 . . 134 . 129 . 74 . 95 40 . 27 16 . . 16 . Select Force Hacks 140 | . 60 . . . . . 30 . . . 50 . . . . . . . . Disable Machine 180 | . . . . . 30 . 15 . 30 . 15 15 . . . . 15 60 . Anti-Garrison Action 100 | . . . . . . . . . . . . . . . . . . . 100 Destroy Structure 621 | . . . . . 35 . 21 . 60 56 28 78 . 40 14 . . 198 91 Partial Spotted 465 | . . . . . 45 . 75 15 105 30 15 105 . 45 . . . 30 . Lose Combat Pursuer 4185 | . 30 . . . 255 . 570 30 720 . 885 1140 . 420 120 . . . 15 Influence Decreases 8359 | 15 252 78 . . 805 151 884 149 1235 408 462 1667 331 604 734 192 85 154 153 Entered New Map 1786 | . 2 45 . . . 141 20 89 104 218 4 369 331 54 68 132 65 41 103 Time Decay 3347 | 15 230 33 . . 466 10 470 . 571 70 228 458 . 398 316 20 10 52 . Search Patrol Dispatched 750 | . . . . . . . . . 150 . 150 450 . . . . . . . Lost Part 721 | . 10 . . . 100 . 30 . 210 . 80 70 . . 100 . 10 61 50 Lost Ally 670 | . 10 . . . 57 . 33 60 50 120 . 20 . 30 250 40 . . . Purge Threat 1085 | . . . . . 182 . 331 . 150 . . 300 . 122 . . . . . Squads Dispatched 116 | . 2 . . . 22 . 22 . 24 . 9 17 . 15 4 . . 1 . Investigation 83 | . 2 . . . 16 . 16 . 16 . 7 13 . 11 2 . . . . Extermination 23 | . . . . . 4 . 4 . 7 . 1 3 . 4 . . . . . Reinforcement 10 | . . . . . 2 . 2 . 1 . 1 1 . . 2 . . 1 . Assault . | . . . . . . . . . . . . . . . . . . . . Garrison . | . . . . . . . . . . . . . . . . . . . . Intercept . | . . . . . . . . . . . . . . . . . . . . Searches Triggered 5 | . . . . . . . . . 1 . 1 3 . . . . . . . Construction Impeded 2 | . . . . . . . . . . . . . . . 2 . . . . Haulers Reinforced 1 | . . . . . 1 . . . . . . . . . . . . . . Active Scanning Responses . | . . . . . . . . . . . . . . . . . . . . Cargo Convoy Interrupts 1 | . . . . . 1 . . . . . . . . . . . . . . Stealth | -11 -10 -10 -10 -8 -6 -6 -6 -6 -5 -5 -5 -4 -4 -4 -4 -4 -4 -4 -4 --------- Run | Yrd Mat Min Sub Scr Fac Was Fac Gar Fac Was Fac Fac Was Fac Ext Cet Arc Hub Gar Distress Signals 20 | . . . . . 1 . . . 2 . 3 1 . 5 5 1 . 2 . Communications Jammed . | . . . . . . . . . . . . . . . . . . . . Distress Signals . | . . . . . . . . . . . . . . . . . . . . Times Spotted 498 | . 18 . . . 50 6 57 12 69 6 76 77 5 39 39 5 5 20 14 Peak Tracking Total 15 | . 4 . . . 7 6 8 12 10 4 15 13 5 12 7 5 3 11 12 Tactical Retreats 94 | . 1 . . . 8 . 12 1 17 . 13 22 . 11 5 . . 3 1 Traps | -11 -10 -10 -10 -8 -6 -6 -6 -6 -5 -5 -5 -4 -4 -4 -4 -4 -4 -4 -4 ------- Run | Yrd Mat Min Sub Scr Fac Was Fac Gar Fac Was Fac Fac Was Fac Ext Cet Arc Hub Gar Traps Triggered 21 | . . . . . 4 . . 2 4 . 2 3 . 1 2 . . 2 1 Indirectly 2 | . . . . . . . . . . . . . . . . . . 2 . Trap Hack Attempts . | . . . . . . . . . . . . . . . . . . . . Triggered . | . . . . . . . . . . . . . . . . . . . . Disarmed . | . . . . . . . . . . . . . . . . . . . . Reprogrammed . | . . . . . . . . . . . . . . . . . . . . Reused . | . . . . . . . . . . . . . . . . . . . . Traps Extracted . | . . . . . . . . . . . . . . . . . . . . Installed . | . . . . . . . . . . . . . . . . . . . . Triggered . | . . . . . . . . . . . . . . . . . . . . Machines | -11 -10 -10 -10 -8 -6 -6 -6 -6 -5 -5 -5 -4 -4 -4 -4 -4 -4 -4 -4 ---------- Run | Yrd Mat Min Sub Scr Fac Was Fac Gar Fac Was Fac Fac Was Fac Ext Cet Arc Hub Gar Machines Disabled 18 | . 1 . . . 2 . 1 . 2 . 1 1 . . 2 . 1 4 3 Max in Single Turn 4 | . 1 . . . 1 . 1 . 1 . 1 1 . . . . 1 4 2 Garrison Access 16 | . . . . . 2 . 3 . 4 . 2 4 . 1 . . . . . Garrison Relay 1 | . . . . . . . . . . . . . . . . . . . 1 Phase Generator 1 | . . . . . . . . . . . . . . . . . . . 1 Network Hub 1 | . . . . . . . . . . . . . . . . . . 1 . Machines Repaired . | . . . . . . . . . . . . . . . . . . . . Machines Dismantled . | . . . . . . . . . . . . . . . . . . . . Machines Sabotaged . | . . . . . . . . . . . . . . . . . . . . Overloaded Fab Kills 6 | . . . . . . . . . . . 6 . . . . . . . . Hacking | -11 -10 -10 -10 -8 -6 -6 -6 -6 -5 -5 -5 -4 -4 -4 -4 -4 -4 -4 -4 --------- Run | Yrd Mat Min Sub Scr Fac Was Fac Gar Fac Was Fac Fac Was Fac Ext Cet Arc Hub Gar Machines Accessed 216 | . 11 1 . 6 39 . 38 . 37 . 16 34 . 20 11 . . 3 . Terminals 102 | . 8 1 . . 18 . 17 . 15 . 7 16 . 9 9 . . 2 . Fabricators 17 | . . . . . 4 . 2 . 5 . 3 2 . 1 . . . . . Repair Stations 19 | . 1 . . . 4 . 4 . 5 . . 3 . 1 1 . . . . Recycling Units 46 | . 2 . . . 8 . 8 . 7 . 4 8 . 8 1 . . . . Scanalyzers 7 | . . . . . 2 . 3 . 1 . . 1 . . . . . . . Garrison Access 19 | . . . . . 3 . 4 . 4 . 2 4 . 1 . . . 1 . Total Hacks 628 | . 33 6 . 26 108 . 133 . 92 . 60 100 . 45 19 . . 6 . Successful 436 | . 26 5 . 26 74 . 86 . 63 . 39 66 . 36 11 . . 4 . Failed 190 | . 6 1 . . 33 . 47 . 29 . 21 34 . 9 8 . . 2 . Catastrophic 14 | . 1 . . . 1 . 3 . 1 . 4 4 . . . . . . . Database Lockouts 2 | . 1 . . . 1 . . . . . . . . . . . . . . Manual 424 | . 28 4 . . 71 . 88 . 68 . 43 71 . 37 9 . . 5 . Terminals 403 | . 26 6 . . 65 . 83 . 47 . 47 78 . 30 16 . . 5 . Fabricators 59 | . . . . . 10 . 11 . 22 . 7 5 . 4 . . . . . Repair Stations 35 | . 3 . . . 11 . 9 . 6 . . 3 . 1 2 . . . . Recycling Units 57 | . 4 . . . 10 . 11 . 10 . 4 8 . 9 1 . . . . Scanalyzers 24 | . . . . . 6 . 13 . 3 . . 2 . . . . . . . Garrison Access 24 | . . . . . 6 . 6 . 4 . 2 4 . 1 . . . 1 . Terminal Hacks 122 | . 4 5 . 26 21 . 25 . 5 . 11 14 . 4 6 . . 1 . Record 18 | . . . . 17 . . . . . . 1 . . . . . . . . Part Schematic 4 | . . . . . 1 . 2 . 1 . . . . . . . . . . Robot Analysis 14 | . 2 3 . 7 1 . . . . . 1 . . . . . . . . Prototype ID Bank 6 | . . . . . 1 . 2 . . . 2 1 . . . . . . . Open Door 7 | . . . . 1 . . . . . . . . . . 6 . . . . Branch Access Points 2 | . . . . . . . . . . . . 1 . 1 . . . . . Emergency Access Points 1 | . . . . . . . 1 . . . . . . . . . . . . Terminal Index 8 | . 1 . . . 2 . 1 . 1 . 1 1 . 1 . . . . . Fabricator Index 1 | . . . . . . . 1 . . . . . . . . . . . . Repair Station Index 2 | . . . . . . . . . . . . 1 . 1 . . . . . Scanalyzer Index 1 | . . . . . . . 1 . . . . . . . . . . . . Garrison Index 2 | . . . . . . . . . . . 1 1 . . . . . . . Alert Level 1 | . . . . . 1 . . . . . . . . . . . . . . Unreport Threat 10 | . . . . . 2 . 4 . 1 . . 2 . 1 . . . . . Locate Traps 13 | . . . . . 6 . 4 . 1 . 1 1 . . . . . . . Dispatch Records 1 | . . 1 . . . . . . . . . . . . . . . . . Recall Investigation 3 | . . . . . 1 . 2 . . . . . . . . . . . . Recall Extermination 3 | . . . . . . . 1 . . . . 2 . . . . . . . Recall Reinforcements 2 | . . . . . . . 2 . . . . . . . . . . . . Registered Components 2 | . . . . . 1 . . . . . . 1 . . . . . . . Registered Prototypes 1 | . . . . . . . . . . . . 1 . . . . . . . Zone Layout 19 | . 1 1 . . 5 . 4 . 1 . 4 2 . . . . . 1 . Proto ID Catalog 1 | . . . . 1 . . . . . . . . . . . . . . . Fabricator Hacks 23 | . . . . . 5 . 4 . 9 . 2 1 . 2 . . . . . Network Status 3 | . . . . . 1 . 1 . . . 1 . . . . . . . . Load Schematic 13 | . . . . . 2 . 2 . 6 . 1 1 . 1 . . . . . Build 7 | . . . . . 2 . 1 . 3 . . . . 1 . . . . . Repair Station Hacks 14 | . 3 . . . 8 . 3 . . . . . . . . . . . . Scan Component 8 | . 2 . . . 4 . 2 . . . . . . . . . . . . Repair 6 | . 1 . . . 4 . 1 . . . . . . . . . . . . Recycling Unit Hacks 2 | . 2 . . . . . . . . . . . . . . . . . . Retrieve Matter 1 | . 1 . . . . . . . . . . . . . . . . . . Retrieve Components 1 | . 1 . . . . . . . . . . . . . . . . . . Scanalyzer 18 | . . . . . 6 . 7 . 3 . . 2 . . . . . . . Insert Component 9 | . . . . . 3 . 4 . 1 . . 1 . . . . . . . Analyze 9 | . . . . . 3 . 3 . 2 . . 1 . . . . . . . Garrison Access Hacks 19 | . . . . . 3 . 4 . 4 . 2 4 . 1 . . . 1 . Unlock Access 3 | . . . . . 1 . 1 . . . . . . . . . . 1 . Seal Access 16 | . . . . . 2 . 3 . 4 . 2 4 . 1 . . . . . Unauthorized Hacks 238 | . 17 . . . 31 . 43 . 42 . 24 45 . 29 5 . . 2 . Terminals 165 | . 15 . . . 19 . 29 . 27 . 18 33 . 19 3 . . 2 . Track 25 | . 2 . . . 5 . 1 . 2 . 5 6 . 3 . . . 1 . Assimilate 19 | . 3 . . . 3 . 4 . 3 . . 2 . 3 1 . . . . Botnet 58 | . 5 . . . 5 . 13 . 9 . 6 12 . 6 1 . . 1 . Detonate 1 | . . . . . . . . . . . . 1 . . . . . . . Disrupt 8 | . . . . . 1 . . . 3 . 1 2 . 1 . . . . . Skim 53 | . 5 . . . 5 . 10 . 10 . 6 10 . 6 1 . . . . Search 1 | . . . . . . . 1 . . . . . . . . . . . . Fabricators 11 | . . . . . 2 . 2 . 3 . 2 1 . 1 . . . . . Prioritize 5 | . . . . . 1 . 1 . 1 . 1 . . 1 . . . . . Liberate 1 | . . . . . 1 . . . . . . . . . . . . . . Overload 1 | . . . . . . . . . . . 1 . . . . . . . . Recompile 4 | . . . . . . . 1 . 2 . . 1 . . . . . . . Repair Stations 14 | . . . . . 2 . 2 . 5 . . 3 . 1 1 . . . . Patch 14 | . . . . . 2 . 2 . 5 . . 3 . 1 1 . . . . Recycling Units 46 | . 2 . . . 8 . 8 . 7 . 4 8 . 8 1 . . . . Tunnel 2 | . 2 . . . . . . . . . . . . . . . . . . Fedlink 44 | . . . . . 8 . 8 . 7 . 4 8 . 8 1 . . . . Scanalyzers 1 | . . . . . . . 1 . . . . . . . . . . . . Extract 1 | . . . . . . . 1 . . . . . . . . . . . . Garrison Access 1 | . . . . . . . 1 . . . . . . . . . . . . Reprogram 1 | . . . . . . . 1 . . . . . . . . . . . . Data Cores Recovered 5 | . . . . . 3 . . . . . 1 . . 1 . . . . . Used 1 | . . . . . . . . . . . . . . 1 . . . . . Hacking Detections 128 | . 9 1 . . 28 . 24 . 22 . 8 18 . 11 5 . . 2 . Full Trace Events 14 | . 1 . . . 5 . 2 . 2 . 1 1 . 2 . . . . . Feedback Events 2 | . . . . . 1 . 1 . . . . . . . . . . . . Corruption 2 | . . . . . 1 . 1 . . . . . . . . . . . . Feedback Blocked . | . . . . . . . . . . . . . . . . . . . . Robot Schematics Acquired . | . . . . . . . . . . . . . . . . . . . . Robots Built . | . . . . . . . . . . . . . . . . . . . . Authchips . | . . . . . . . . . . . . . . . . . . . . Time . | . . . . . . . . . . . . . . . . . . . . Total Robot Build Rating . | . . . . . . . . . . . . . . . . . . . . Part Schematics Acquired 14 | . . . . . 4 . 7 . 2 . . 1 . . . . . . . Parts Built 14 | . . . . . 4 . 2 . 6 . . . . 2 . . . . . Authchips 3 | . . . . . . . 1 . 2 . . . . . . . . . . Time 267 | . . . . . 72 . 47 . 130 . . . . 18 . . . . . Total Part Build Rating 54 | . . . . . 12 . 10 . 26 . . . . 6 . . . . . Parts Repaired 6 | . 1 . . . 4 . 1 . . . . . . . . . . . . Time 169 | . 26 . . . 104 . 39 . . . . . . . . . . . . Parts Recycled . | . . . . . . . . . . . . . . . . . . . . Recycled Matter . | . . . . . . . . . . . . . . . . . . . . Retrieved Matter . | . . . . . . . . . . . . . . . . . . . . Retrieved Components . | . . . . . . . . . . . . . . . . . . . . Parts Scanalyzed 8 | . . . . . 3 . 4 . . . . 1 . . . . . . . Part Schematics Acquired 8 | . . . . . 3 . 3 . 1 . . 1 . . . . . . . Parts Damaged . | . . . . . . . . . . . . . . . . . . . . Bothacking | -11 -10 -10 -10 -8 -6 -6 -6 -6 -5 -5 -5 -4 -4 -4 -4 -4 -4 -4 -4 ------------ Run | Yrd Mat Min Sub Scr Fac Was Fac Gar Fac Was Fac Fac Was Fac Ext Cet Arc Hub Gar Used RIF Installer 2 | . . . . . . . . 1 . . . . . . . . . . 1 Hotswap 1 | . . . . . . . . . . . . . . . . . . . 1 Robots Hacked . | . . . . . . . . . . . . . . . . . . . . Non-combat . | . . . . . . . . . . . . . . . . . . . . Combat . | . . . . . . . . . . . . . . . . . . . . Robot Hacks Applied . | . . . . . . . . . . . . . . . . . . . . Relay Couplers Released 3 | . . . . . . . . . . . . . . . . . . . 3 Machine Destruction 3 | . . . . . . . . . . . . . . . . . . . 3 Fabnet Peak Effective % . | . . . . . . . . . . . . . . . . . . . . Robots Rewired 9 | . . . . . . . . . 1 . . . . . 8 . . . . Allies Hacked . | . . . . . . . . . . . . . . . . . . . . Hacks Repelled . | . . . . . . . . . . . . . . . . . . . . Allies | -11 -10 -10 -10 -8 -6 -6 -6 -6 -5 -5 -5 -4 -4 -4 -4 -4 -4 -4 -4 -------- Run | Yrd Mat Min Sub Scr Fac Was Fac Gar Fac Was Fac Fac Was Fac Ext Cet Arc Hub Gar Total Allies 56 | . 2 . . . 3 1 7 . 4 18 . 2 1 3 15 . . . . Largest Group 18 | . 2 1 1 1 2 1 2 3 2 18 . 1 1 2 6 2 . . . Highest-Rated Group 656 | . 20 10 10 10 64 31 36 87 59 656 . 26 46 36 349 92 . . . Highest-Rated Ally 159 | . 10 10 10 10 32 31 26 29 49 50 . 26 46 26 159 46 . . . Total Orders 8 | . . 4 . 1 . . 2 . . . . . . . . 1 . . . STAY 6 | . . 4 . 1 . . 1 . . . . . . . . . . . . ROAM 1 | . . . . . . . . . . . . . . . . 1 . . . FOLLOW 1 | . . . . . . . 1 . . . . . . . . . . . . Ally Attacks 284 | . . . . . 2 . . 14 1 139 . . 3 . 115 10 . . . Total Damage 9440 | . . . . . 92 . . 222 62 5430 . . 71 . 3342 221 . . . Kills 32 | . . . . . 1 . . 1 . 15 . . . . 15 . . . . Allies Corrupted . | . . . . . . . . . . . . . . . . . . . . Allies Melted . | . . . . . . . . . . . . . . . . . . . . Intel | -11 -10 -10 -10 -8 -6 -6 -6 -6 -5 -5 -5 -4 -4 -4 -4 -4 -4 -4 -4 ------- Run | Yrd Mat Min Sub Scr Fac Was Fac Gar Fac Was Fac Fac Was Fac Ext Cet Arc Hub Gar Active Infowar (turns) 9023 | 4 487 90 69 510 1708 17 999 28 1737 152 496 1140 16 1032 440 . . 98 . Sensors 6459 | . . . . . 1006 . 998 28 1652 152 137 953 16 1032 440 . . 45 . Structural 5652 | . . . . . 695 17 760 . 1584 152 496 917 16 1015 . . . . . Seismic 1963 | 4 487 90 69 510 684 . . . . . . 119 . . . . . . . Triangulation 95 | . . . . . . . . . 95 . . . . . . . . . . Jamming 13 | . . . . . . . . . 13 . . . . . . . . . . ECM 58 | . . . . . . . . . . . . 5 . . . . . 53 . Robot Analysis Total 14 | . 2 3 . 7 1 . . . . . 1 . . . . . . . . Derelict Logs Recovered 1 | . . 1 . . . . . . . . . . . . . . . . . Drone Launches . | . . . . . . . . . . . . . . . . . . . . Drone Recoveries . | . . . . . . . . . . . . . . . . . . . . Exploration | -11 -10 -10 -10 -8 -6 -6 -6 -6 -5 -5 -5 -4 -4 -4 -4 -4 -4 -4 -4 ------------- Run | Yrd Mat Min Sub Scr Fac Was Fac Gar Fac Was Fac Fac Was Fac Ext Cet Arc Hub Gar Turns Passed 10143 | 72 487 90 69 510 1752 24 1198 39 1840 152 496 1144 16 1032 835 41 39 142 165 Spaces Moved 20862 | 47 813 172 106 1301 3936 87 3455 115 3536 296 1271 2545 71 1749 941 80 39 167 135 Core 105 | 47 47 . . . . . . . 11 . . . . . . . . . . Treads . | . . . . . . . . . . . . . . . . . . . . Legs . | . . . . . . . . . . . . . . . . . . . . Wheels 144 | . . . . . . . . . 144 . . . . . . . . . . Hover 496 | . . . . . . . . . 249 . . . . . . . . 112 135 Flight 20117 | . 766 172 106 1301 3936 87 3455 115 3132 296 1271 2545 71 1749 941 80 39 55 . Fastest Speed 12 | 50 37 37 37 37 20 21 12 19 19 23 23 19 22 22 22 40 40 32 71 Average Speed 29 | 50 38 37 37 37 26 21 22 19 31 26 28 28 22 28 31 40 40 60 71 Slowest Speed 280 | 50 60 37 37 37 280 21 77 19 200 74 40 40 22 29 200 40 40 150 71 Overloaded Moves 11 | . . . . . . . 11 . . . . . . . . . . . . Propulsion Burnouts . | . . . . . . . . . . . . . . . . . . . . Robots Hopped 159 | . 10 4 . . 28 1 29 4 20 . 14 19 . 18 10 2 . . . Potential Cave-ins . | . . . . . . . . . . . . . . . . . . . . Cave-ins Triggered . | . . . . . . . . . . . . . . . . . . . . Exploration Rate (%) 58 | 4 96 18 10 90 86 82 85 26 76 90 42 69 77 53 88 49 68 32 37 Regions Visited 19 Branch Regions 7 Pre-discovered Areas 16 | . 2 . . 1 2 . 3 . 1 . 1 3 . 3 . . . . . Known Exits Taken 8 | . . 1 . . . . 1 . . . 1 . . 1 1 1 1 1 . Unknown Exits Taken 4 | 1 1 . 1 1 . . . . . . . . . . . . . . . Scrap Searched 7 | . . 1 . 6 . . . . . . . . . . . . . . . Spaces Dug 167 | . . . . . 35 . 22 . 30 . 14 40 . 20 2 . . 4 . Terrain Destroyed 432 | . . . . . 35 . 22 . 30 . 14 40 . 20 2 . . 181 88 Melee 167 | . . . . . 35 . 22 . 30 . 14 40 . 20 2 . . 4 . Projectile . | . . . . . . . . . . . . . . . . . . . . AOE 265 | . . . . . . . . . . . . . . . . . . 177 88 Terrain Rammed . | . . . . . . . . . . . . . . . . . . . . Walls Destroyed . | . . . . . . . . . . . . . . . . . . . . Machines Disabled . | . . . . . . . . . . . . . . . . . . . . Actions | -11 -10 -10 -10 -8 -6 -6 -6 -6 -5 -5 -5 -4 -4 -4 -4 -4 -4 -4 -4 --------- Run | Yrd Mat Min Sub Scr Fac Was Fac Gar Fac Was Fac Fac Was Fac Ext Cet Arc Hub Gar Total 23879 | 72 892 193 134 1330 4460 91 3748 125 4073 367 1347 2844 70 2226 1398 86 50 190 183 Wait 2019 | . 27 26 28 11 305 1 210 13 318 68 32 202 . 442 307 9 3 1 16 Move 20543 | 46 794 163 105 1300 3881 84 3396 106 3497 295 1244 2509 70 1715 922 76 38 167 135 Hop 145 | . 8 4 . . 27 1 29 4 19 . 12 17 . 15 8 1 . . . Pick Up 50 | 2 2 . . 5 12 2 5 . 7 . 4 6 . 4 1 . . . . Fast Attach 132 | 4 5 . . 2 26 . 9 . 34 2 8 18 . 4 9 . . 9 2 Attach 38 | . . . . 1 5 . 4 . 10 . 2 7 . 1 5 . . 3 . Detach 21 | . . . . . 1 . 2 . 7 . 2 4 . . 5 . . . . Swap 74 | . 2 . 1 3 24 1 17 1 10 . 1 6 . 4 3 . . . 1 Drop 99 | . 2 . . 8 22 2 12 . 16 2 7 11 . 10 7 . . . . Fire 79 | 20 52 . . . . . . . . . . . . . . . . 2 5 Melee 564 | . . . . . 138 . 64 1 125 . 35 62 . 31 67 . 9 8 24 Ram 1 | . . . . . 1 . . . . . . . . . . . . . . Kick . | . . . . . . . . . . . . . . . . . . . . Crush . | . . . . . . . . . . . . . . . . . . . . Escape Stasis 84 | . . . . . 18 . . . 28 . . 2 . . 36 . . . . Rewire 30 | . . . . . . . . . 2 . . . . . 28 . . . . Trap . | . . . . . . . . . . . . . . . . . . . . Miscellaneous . | . . . . . . . . . . . . . . . . . . . . Route ------- -11/Scrapyard -10/Materials (discovered 5 exits: [*Mat x3] / *Min / Sub) -10/Mines -10/Subcaves -8/Scraptown (discovered 2 exits: *Fac x2) -6/Factory (discovered 5 exits: *Fac x2 / *Low x2 / Gar) -6/Waste -6/Factory (discovered 7 exits: *Fac x4 / *Low x2 / Gar) -6/Garrison -5/Factory (discovered 6 exits: *Fac x4 / *Upp x2) -5/Waste -5/Factory (discovered 4 exits: *Fac x3 / Upp) -4/Factory (discovered 6 exits: *Res x2 / *Upp x2 / Ext x2) -4/Waste -4/Factory (discovered 6 exits: *Res x2 / *Upp x2 / *Ext x2) -4/Extension (discovered 3 exits: *Res x2 / *Cet) -4/Cetus -4/Archives (discovered 3 exits: Res / *Hub x2) -4/Hub_04(d) (discovered 3 exits: *Res x2 / Gar) -4/Garrison History --------- Turn | Location | Event 3 | -11/Scrapyard | Discovered new exit (range 15) 73 | -11/Scrapyard | Entered Materials 152 | -10/Materials | Discovered new exit (range 14) 203 | -10/Materials | Discovered new exit (range 10) 248 | -10/Materials | Discovered new exit (range 13) 279 | -10/Materials | Discovered new exit (range 11) 307 | -10/Materials | Identified exit to Subcaves 324 | -10/Materials | Repaired Flight Unit? 343 | -10/Materials | Learned Storage stockpile data 367 | -10/Materials | Loaded intel: 8 trap records 385 | -10/Materials | Learned Recycling recycling unit intel 386 | -10/Materials | Learned Storage security intel 387 | -10/Materials | Learned Materials trap positions 394 | -10/Materials | Learned location of 2 exits from Materials 416 | -10/Materials | Central database locked down 560 | -10/Materials | Entered Mines 560 | -10/Mines | Accompanied by 1 ally 562 | -10/Mines | Learned 4 Materials zone layouts 594 | -10/Mines | Discovered exit to Subcaves (range 5) 604 | -10/Mines | Met a Derelict bent on vengeance 643 | -10/Mines | Build established: Scavenger-Mutant 644 | -10/Mines | Assembled infested the area 650 | -10/Mines | Entered Subcaves 650 | -10/Subcaves | Accompanied by 1 ally 651 | -10/Subcaves | Approached by a straggling Scientist 660 | -10/Subcaves | Shifting Twisted Machinery released Barrage Gun 719 | -10/Subcaves | Entered Scraptown 719 | -8/Scraptown | Accompanied by 1 ally 725 | -8/Scraptown | Heard Great Nut preacher, LISTEN AND RECITE! 800 | -8/Scraptown | Discovered new exit (range 13) 811 | -8/Scraptown | Visited Symbiants 818 | -8/Scraptown | Visited SPCMW 827 | -8/Scraptown | Visited UFD Registry 827 | -8/Scraptown | Registered with UFD as "Flashcell" 838 | -8/Scraptown | Visited Cyclists 841 | -8/Scraptown | Entered Cyclist Reading Room 848 | -8/Scraptown | Visited The Evicted 859 | -8/Scraptown | Visited TADAMA 921 | -8/Scraptown | Visited Bundlers 946 | -8/Scraptown | Visited CPS Storage 967 | -8/Scraptown | Visited Curators Association 979 | -8/Scraptown | Visited Science Guys 991 | -8/Scraptown | Visited Junk Repository 1038 | -8/Scraptown | Visited Sword Containment 1052 | -8/Scraptown | Visited Scrapoid Pod Storage 1063 | -8/Scraptown | Visited Abandonware Association 1067 | -8/Scraptown | Learned abandonware demo "SHUTEYE.EXE" 1074 | -8/Scraptown | Visited Junk Repository 1084 | -8/Scraptown | Visited Analyses Database 1098 | -8/Scraptown | Discovered new exit (range 3) 1139 | -8/Scraptown | Visited Derelict Rescue Squad 1141 | -8/Scraptown | Found DRS Beacon 1149 | -8/Scraptown | Visited Modified Component R&D 1206 | -8/Scraptown | Met Optimus 1206 | -8/Scraptown | Accepted into 0bPrime 1229 | -8/Scraptown | Entered Factory 1229 | -6/Factory | Accompanied by 1 ally 1229 | -6/Factory | Evolved 8 slots: Propulsion x4, Utility x4 1465 | -6/Factory | Discovered new exit (range 8) 1480 | -6/Factory | Loaded intel: 8 recycling unit locations 1706 | -6/Factory | Lost 4 parts (4n) 1844 | -6/Factory | Learned location of Protoforge (-2) 1857 | -6/Factory | Discovered new exit (range 6) 1860 | -6/Factory | Identified exit to Lower Caves 1945 | -6/Factory | Learned 2 Lower Caves zone layouts 1952 | -6/Factory | Lost 3 parts (2n1u) 1957 | -6/Factory | Learned Extension stockpile data 1959 | -6/Factory | Learned Extension emergency access door positions 1972 | -6/Factory | Learned location of 1 exit from Hub_04(d) 1994 | -6/Factory | Learned 4 Lower Caves zone layouts 2046 | -6/Factory | Fabricated Surge Thruster (x2) 2111 | -6/Factory | Repaired Fission Core 2176 | -6/Factory | Discovered exit to Lower Caves (range 9) 2198 | -6/Factory | Central database locked down 2393 | -6/Factory | Discovered new exit (range 6) 2397 | -6/Factory | Identified exit to Factory 2443 | -6/Factory | Repaired Surge Thruster 2461 | -6/Factory | Repaired VTOL Module 2481 | -6/Factory | Repaired Surge Thruster 2667 | -6/Factory | Build established: Hacker-Scout 2708 | -6/Factory | Fabricated Surge Thruster (x2) 2714 | -6/Factory | Cargo convoy interrupted 2968 | -6/Factory | Identified exit to Garrison 2981 | -6/Factory | Manually triggered Chute Trap 2981 | -6/Factory | Sucked down chute 2981 | -6/Factory | Entered Waste 2982 | -6/Waste | Met a frightened Derelict 2990 | -6/Waste | Spotted C-40 Crusher 2991 | -6/Waste | Spotted C-40 Crusher 2992 | -6/Waste | Spotted C-40 Crusher 2993 | -6/Waste | Spotted C-40 Crusher 2996 | -6/Waste | EMP discharged 2998 | -6/Waste | Spotted C-40 Crusher 3003 | -6/Waste | Discovered new exit (range 10) 3003 | -6/Waste | Spotted C-40 Crusher 3005 | -6/Waste | Identified exit to Factory 3005 | -6/Waste | Entered Factory 3041 | -6/Factory | Loaded intel: 8 recycling unit locations 3210 | -6/Factory | Learned location of 1 exit from Upper Caves 3265 | -6/Factory | Learned location of Extension (-4) 3306 | -6/Factory | Repaired Broken Adv. System Restoration Module 3350 | -6/Factory | Learned location of Cetus (-4) 3376 | -6/Factory | Learned Extension emergency access door positions 3419 | -6/Factory | Learned location of 2 exits from Archives 3454 | -6/Factory | Learned 4 Upper Caves zone layouts 3494 | -6/Factory | Discovered exit to Lower Caves (range 12) 3574 | -6/Factory | Discovered exit to Factory (range 15) 3646 | -6/Factory | Discovered exit to Lower Caves (range 3) 3770 | -6/Factory | Discovered exit to Factory (range 10) 3900 | -6/Factory | Fabricated Imp. Surge Thruster (x2) 3918 | -6/Factory | Discovered exit to Factory (range 14) 3980 | -6/Factory | Learned 2 Hub_04(d) zone layouts 3992 | -6/Factory | Core integrity fell below 50% 4034 | -6/Factory | Learned location of 2 exits from Archives 4106 | -6/Factory | Learned location of 1 exit from Factory 4133 | -6/Factory | Loaded intel: 54 interactive machine locations 4145 | -6/Factory | Learned Hub_04(d) terminal intel 4166 | -6/Factory | Learned location of 2 exits from Upper Caves 4181 | -6/Factory | Identified exit to Garrison 4199 | -6/Factory | Learned location of 3 exits from Factory 4203 | -6/Factory | Entered Garrison 4203 | -6/Garrison | Accompanied by 3 allies 4225 | -6/Garrison | Spotted B-75 Beast 4228 | -6/Garrison | Spotted B-75 Beast 4229 | -6/Garrison | Triggered checkpoint 4229 | -6/Garrison | Triggered checkpoint 4237 | -6/Garrison | Discovered exit to Factory (range 15) 4240 | -6/Garrison | Installed Relay Interface Framework 4242 | -6/Garrison | Entered Factory 4242 | -5/Factory | Evolved 2 slots: Utility x2 4243 | -5/Factory | Identified exit to Upper Caves 4244 | -5/Factory | Identified exit to Factory 4399 | -5/Factory | Lost 3 parts (2n1u) 4565 | -5/Factory | Loaded intel: 8 recycling unit locations 4586 | -5/Factory | Spotted B-75 Beast 4675 | -5/Factory | Lost 3 parts (2n1u) 4681 | -5/Factory | Learned location of 1 exit from Extension 4782 | -5/Factory | Lost 8 parts (1p6n1u) 4829 | -5/Factory | Learned Armory garrison access intel 4891 | -5/Factory | Learned Testing trap positions 4945 | -5/Factory | Learned 2 Extension zone layouts 4991 | -5/Factory | Learned Extension machine intel 5025 | -5/Factory | Fabricated Imp. Surge Thruster (x2) 5193 | -5/Factory | Learned Extension trap positions 5754 | -5/Factory | Learned Testing trap positions 5804 | -5/Factory | Learned 4 Proximity Caves zone layouts 5871 | -5/Factory | Learned Research stockpile data 5904 | -5/Factory | Learned Research recycling unit intel 5928 | -5/Factory | Learned 2 Extension zone layouts 6004 | -5/Factory | Learned Quarantine trap positions 6015 | -5/Factory | Fabricated Imp. Surge Thruster? 6042 | -5/Factory | Search patrols dispatched 6059 | -5/Factory | Fabricated Imp. Propulsion Shielding (x2) 6082 | -5/Factory | Manually triggered Chute Trap 6082 | -5/Factory | Sucked down chute 6082 | -5/Factory | Entered Waste 6083 | -5/Waste | Identified exit to Factory 6084 | -5/Waste | Spotted C-40 Crusher 6087 | -5/Waste | Spotted C-40 Crusher 6090 | -5/Waste | Spotted C-40 Crusher 6093 | -5/Waste | Spotted C-40 Crusher 6093 | -5/Waste | Spotted C-40 Crusher 6098 | -5/Waste | Warlord forces began an assault 6104 | -5/Waste | Allies destroyed C-40 Crusher 6116 | -5/Waste | Spotted C-40 Crusher 6135 | -5/Waste | Allies destroyed C-40 Crusher 6139 | -5/Waste | Allies destroyed C-40 Crusher 6141 | -5/Waste | Allies destroyed C-40 Crusher 6173 | -5/Waste | Allies destroyed C-40 Crusher 6202 | -5/Waste | Lost 15 allies 6234 | -5/Waste | Entered Factory 6271 | -5/Factory | Core integrity fell below 50% 6295 | -5/Factory | Loaded intel: 8 recycling unit locations 6395 | -5/Factory | Discovered exit to Factory (range 12) 6439 | -5/Factory | Learned Quarantine stockpile data 6499 | -5/Factory | Learned Armory fabricator intel 6513 | -5/Factory | Learned 4 Upper Caves zone layouts 6515 | -5/Factory | Learned Factory recycling unit intel 6516 | -5/Factory | Learned location of Warlord (-5) 6517 | -5/Factory | Learned location of 3 exits from Research 6518 | -5/Factory | Learned 4 Armory zone layouts 6519 | -5/Factory | Learned Factory security intel 6530 | -5/Factory | Learned Research trap positions 6534 | -5/Factory | Search patrols dispatched 6649 | -5/Factory | Learned Armory repair station intel 6726 | -5/Factory | Core integrity fell below 20% 6730 | -5/Factory | Entered another Factory area 6730 | -4/Factory | Evolved 2 slots: Propulsion x2 6732 | -4/Factory | Loaded intel: 8 recycling unit locations 6754 | -4/Factory | Lost 4 parts (2n2u) 6801 | -4/Factory | Loaded intel: 8 recycling unit locations 6875 | -4/Factory | Spotted B-86 Titan 6991 | -4/Factory | Identified exit to Upper Caves 6991 | -4/Factory | Identified exit to Extension 7058 | -4/Factory | Learned Armory repair station intel 7101 | -4/Factory | Discovered new exit (range 4) 7152 | -4/Factory | Learned location of Quarantine (-2) 7157 | -4/Factory | Spotted B-86 Titan 7187 | -4/Factory | Learned Research repair station intel 7211 | -4/Factory | Lost 5 parts (3n2u) 7230 | -4/Factory | Learned 8 Research zone layouts 7230 | -4/Factory | Search patrols dispatched 7259 | -4/Factory | Learned Testing garrison access intel 7344 | -4/Factory | Identified exit to Research 7480 | -4/Factory | Search patrols dispatched 7594 | -4/Factory | Learned Testing emergency access door positions 7670 | -4/Factory | Learned location of Archives (-4) 7730 | -4/Factory | Search patrols dispatched 7735 | -4/Factory | Learned Research scanalyzer intel 7871 | -4/Factory | Loaded intel: 4 scanalyzer locations 7874 | -4/Factory | Sucked down chute 7874 | -4/Factory | Entered Waste 7875 | -4/Waste | Met a frightened Derelict 7876 | -4/Waste | Spotted C-40 Crusher 7878 | -4/Waste | Spotted C-40 Crusher 7879 | -4/Waste | Spotted C-40 Crusher 7882 | -4/Waste | Spotted C-40 Crusher 7886 | -4/Waste | Spotted C-40 Crusher 7886 | -4/Waste | Discovered new exit (range 16) 7889 | -4/Waste | EMP discharged 7890 | -4/Waste | Identified exit to Factory 7890 | -4/Waste | Entered Factory 8064 | -4/Factory | Loaded intel: 8 recycling unit locations 8256 | -4/Factory | Discovered exit to Research (range 7) 8614 | -4/Factory | Fabricated Imp. Propulsion Shielding (x2) 8661 | -4/Factory | Learned Quarantine scanalyzer intel 8772 | -4/Factory | Learned location of Armory (-3) 8775 | -4/Factory | Learned 8 Quarantine zone layouts 8810 | -4/Factory | Learned 4 Proximity Caves zone layouts 8840 | -4/Factory | Learned location of 2 exits from Upper Caves 8922 | -4/Factory | Entered Extension 8924 | -4/Extension | Identified exit to Cetus 8926 | -4/Extension | Loaded intel: 23 trap records 8929 | -4/Extension | Loaded intel: 32 machine locations 8948 | -4/Extension | Rescued A7 8957 | -4/Extension | Found Unknown Protection 8957 | -4/Extension | Identified Imp. Powered Armor 8976 | -4/Extension | Loaded intel: 1 recycling unit location 9005 | -4/Extension | Rescued a captive Derelict 9006 | -4/Extension | Rescued a captive Derelict 9012 | -4/Extension | Rescued a captive Derelict 9014 | -4/Extension | Rescued a captive Derelict 9048 | -4/Extension | Rescued a captive Derelict 9216 | -4/Extension | Build established: Hacker-Sprinter 9311 | -4/Extension | Spotted B-86 Titan 9335 | -4/Extension | Allies destroyed B-86 Titan 9338 | -4/Extension | Spotted B-86 Titan 9374 | -4/Extension | Destroyed B-86 Titan 9406 | -4/Extension | Lost 7 parts (5n2u) 9436 | -4/Extension | Extracted ID and sensor layout for unrecognized location from A7's data core 9455 | -4/Extension | Rescued a captive Derelict 9472 | -4/Extension | Lost 3 allies 9601 | -4/Extension | Lost 3 allies 9653 | -4/Extension | Rescued a captive Derelict 9656 | -4/Extension | Build established: Hacker-Mutant 9757 | -4/Extension | Entered Cetus 9757 | -4/Cetus | Accompanied by 2 allies 9771 | -4/Cetus | Spotted Cetus Guard 9771 | -4/Cetus | Spotted Cetus Guard 9771 | -4/Cetus | Spotted Cetus Guard 9771 | -4/Cetus | Spotted Cetus Guard 9792 | -4/Cetus | Discovered new exit (range 15) 9798 | -4/Cetus | Identified exit to Archives 9798 | -4/Cetus | Entered Archives 9799 | -4/Archives | Forged Quantum Companion 9799 | -4/Archives | Identified exit to Hub_04(d) 9837 | -4/Archives | Entered Hub_04(d) 9840 | -4/Hub_04(d) | Loaded intel: 15 terminal locations 9844 | -4/Hub_04(d) | Discovered exit to Research (range 4) 9863 | -4/Hub_04(d) | Core integrity fell below 50% 9922 | -4/Hub_04(d) | Lost 6 parts (1p3n2u) 9945 | -4/Hub_04(d) | Network Hub disabled 9957 | -4/Hub_04(d) | Spotted Lightning 9959 | -4/Hub_04(d) | Spotted Lightning 9961 | -4/Hub_04(d) | Spotted Lightning 9967 | -4/Hub_04(d) | Spotted Lightning 9970 | -4/Hub_04(d) | Spotted Lightning 9974 | -4/Hub_04(d) | Core integrity fell below 20% 9979 | -4/Hub_04(d) | Identified exit to Garrison 9979 | -4/Hub_04(d) | Entered Garrison 9990 | -4/Garrison | Build established: Mutant 9994 | -4/Garrison | Phase Generator disabled 10005 | -4/Garrison | Lost 3 parts (1n2u) 10009 | -4/Garrison | Garrison Relay disabled 10017 | -4/Garrison | Triggered checkpoint 10087 | -4/Garrison | Spotted B-86 Titan 10100 | -4/Garrison | Lost 3 parts (2u1w) 10122 | -4/Garrison | Spotted B-86 Titan 10138 | -4/Garrison | Expanded RIF knowledge: Hotswap 10144 | -4/Garrison | Destroyed by C-35 Carver with Carbide Saw Last Messages --------------- 10041_ System corrupted: IFF burst signal emitted. 10041_ Destroyed Adv. Heat Sink. 10042_ Deflected attack with Quantum Companion. 10043_ G-67 Veteran destroyed. 10046_ Acquired Adv. Heat Sink. 10047_ Acquired 10 matter. 10050_ Acquired Lgt. Antimatter Reactor. 10069_ Wave Gun destroyed. 10080_ G-67 Veteran destroyed. 10083_ Acquired Adv. Heat Sink. 10087_ Triggered Alarm Trap. 10087_ An alarm sounds. 10124_ Detecting nearby RIF Installer. The surroundings shift and blur. 10132_ Lgt. Antimatter Reactor destroyed. 10134_ Adv. Heat Sink destroyed. Initiating installation procedure... 10138_ Expanded RIF knowledge: Hotswap. 10140_ C-35 Carver destroyed. Map ----- +----------------------------------------------------+ | ????????????????????????????????? | | ????????????????????????????????? | | ????????????????????????????????? | | ????????????????????????????????? | | ????????????????????????????????? | | ????????????????????????????????? | | ????????????????????????????????? | | ????????????????????????????????? | | ????????????????????????????????? | | ????????????????????????????????? | | ????????????????????????????????? | | ????????????????????????????????? | | ????????????????????????????????? | | ????????????????????????????????? | | ????????????????????????????????? | | ????????????????????????????????? | | ????????????????????????????????? | | ????????????????????????????????? | | ????????????????????????????????? | | ????????????????????????????????? | | ????????????????????????????????? | | ????????????????????????????????? | | ????????????????????????????????? | | #############################???? | | #=""""#???? | | gcc@ "#???? | | ######### ######### c# """"#???? | | #???????# #???????# #######???? | | #??????# ??????# #?????????? | | #??????# ?????# #?????????? | | #?????? ????# #?????????? | | #????? #!!!!!!!#???# #?????????? | | #????####### ##???# #?????????? | | #??????????? #????# #?????????? | | #??????????? ????# #?????????? | | #??????????? ???# #?????????? | | #??????????? "???# #?????????? | | #????????????"""???# ?????????? | | ?????????????#?????# #?????????? | | ???????????????????# #?????????? | | ???????????????????# #?????????? | | ???????????????????# #?????????? | | ???????????????????# ??????????? | | ???????????????????? ??????????? | | ???????????????????? ??????????? | | ???????????????????? ??????????? | | ????????????????????????????????? | | ????????????????????????????????? | | ????????????????????????????????? | | ????????????????????????????????? | +----------------------------------------------------+ Best States ------------- Heat Dissipation 81 Energy Generation 23 Energy Capacity 500 Matter Stores 300 Matter Capacity 300 Sight Range 16 Robot Scan Range 18 Terrain Scan Density 10 ECM Strength 2 Jamming Range 14 Armor Coverage 400 Core Shielding 30 Propulsion Shielding 66 Utility Shielding 66 Melee Speed Boost 30 Evasion (%) 66 Melee Accuracy 8 Offensive Hacking 30 Defensive Hacking 28 Authchip Count 1 Item Schematics ----------------- Ovr. Beamcaster | -6/Factory | Scanalyzed Surge Thruster | -6/Factory | Hacked Microactuators | -6/Factory | Scanalyzed System Shield | -6/Factory | Scanalyzed Mic. Antimatter Reactor | -6/Factory | Scanalyzed Proton Cannon | -6/Factory | Extracted Angular Momentum Engine | -6/Factory | Extracted Imp. Propulsion Shielding | -6/Factory | Scanalyzed Stasis Canceller | -6/Factory | Scanalyzed Imp. Hacking Suite | -6/Factory | Hacked Imp. Surge Thruster | -6/Factory | Hacked Adv. System Restoration Module | -5/Factory | Scanalyzed Graphene Brace | -5/Factory | Hacked Impulse Thruster | -4/Factory | Scanalyzed Robot Schematics ------------------ None Fabricated ------------ Surge Thruster | x2 | -6/Factory Surge Thruster | x2 | -6/Factory Imp. Surge Thruster | x2 | -6/Factory | Authchip Imp. Surge Thruster | x2 | -5/Factory Imp. Surge Thruster | x2 | -5/Factory | Authchip Imp. Propulsion Shielding | x2 | -5/Factory | Authchip Imp. Propulsion Shielding | x2 | -4/Factory Repaired ---------- Flight Unit | 35% | -10/Materials Fission Core | 28% | -6/Factory Surge Thruster | 2% | -6/Factory VTOL Module | 44% | -6/Factory Surge Thruster | 45% | -6/Factory Adv. System Restoration Module | 13% | -6/Factory | Broken Alien Tech Used ----------------- None Achievements -------------- None Challenges ------------ None Game ------ Seed HardenedChargeArray Manual? 0 Play Time 04:20:13 Cumulative 425.1 hours Start 2025.08.06 @ 15:08:44 End 2025.08.06 @ 22:16:16 Sessions 3 Manual Loads 0 Difficulty Rogue Special Mode None Game No. 194 Rogue 194 Adventurer 0 Explorer 0 Win Type - Total 30 Types 12/2/5/2/5/1/0/2/0/1 Lore% 94 Gallery% 84 Achievement% 78 Wizard Run 0 Options --------- Layout 1 ASCII 0 Keyboard 0 Movement Numpad Keybinds 0 Fullscreen 1 Font 24/Smallcaps Map View 50x35 Zoom Use 0% Tactical HUD 1 Map Filters NONE Filters NONE Steam 1 RUN: fab35aa7-71c7-4612-9a56-0bffaf3c6d03